[Event "Late-Titled-Tuesday-Blitz-March-26-2024"]
[Site "Chess.com"]
[Date "2024.03.26"]
[Round "4"]
[White "Veleamater"]
[Black "ernestina08chess"]
[Result "1-0"]
[WhiteElo "2405"]
[BlackElo "2258"]
[TimeControl "180+1"]
[EndTime "14:41:15 PDT"]
[Termination "Veleamater won on time"]

1. g3 {[%clk 0:03:00.9]} 1... Nf6 {[%clk 0:02:59]} 2. Bg2 {[%clk 0:03:01.5]}
2... g6 {[%clk 0:02:59.5]} 3. d3 {[%clk 0:03:02.1]} 3... Bg7 {[%clk 0:03:00]} 4.
Nf3 {[%clk 0:03:02.7]} 4... O-O {[%clk 0:03:00.6]} 5. O-O {[%clk 0:03:03.3]}
5... d5 {[%clk 0:03:00.8]} 6. Nc3 {[%clk 0:03:03.8]} 6... c5 {[%clk 0:03:01.2]}
7. e4 {[%clk 0:03:04]} 7... Nc6 {[%clk 0:03:00.2]} 8. h3 {[%clk 0:03:03.8]} 8...
e5 {[%clk 0:02:58.7]} 9. Nd2 {[%clk 0:03:02.9]} 9... d4 {[%clk 0:02:56.1]} 10.
Ne2 {[%clk 0:03:02.6]} 10... Be6 {[%clk 0:02:54.1]} 11. f4 {[%clk 0:03:02.7]}
11... Qc8 {[%clk 0:02:31.3]} 12. Kh2 {[%clk 0:02:59.5]} 12... Ne8 {[%clk
0:02:27.3]} 13. Nf3 {[%clk 0:02:57.4]} 13... h6 {[%clk 0:02:21.8]} 14. Nh4
{[%clk 0:02:54.2]} 14... Bd7 {[%clk 0:01:53.5]} 15. f5 {[%clk 0:02:47.3]} 15...
g5 {[%clk 0:01:53.4]} 16. Nf3 {[%clk 0:02:46.3]} 16... f6 {[%clk 0:01:53.6]} 17.
g4 {[%clk 0:02:46.4]} 17... Nd6 {[%clk 0:01:50.4]} 18. Ng3 {[%clk 0:02:45]}
18... Rf7 {[%clk 0:01:48]} 19. Nh5 {[%clk 0:02:44.2]} 19... Bf8 {[%clk
0:01:47.7]} 20. Kg3 {[%clk 0:02:43.8]} 20... c4 {[%clk 0:01:44.8]} 21. Rh1
{[%clk 0:02:43.1]} 21... cxd3 {[%clk 0:01:44.3]} 22. cxd3 {[%clk 0:02:42.2]}
22... Nb4 {[%clk 0:01:44.8]} 23. Ne1 {[%clk 0:02:41.7]} 23... Bb5 {[%clk
0:01:43.5]} 24. Qb3 {[%clk 0:02:27.7]} 24... Na6 {[%clk 0:01:41.8]} 25. Nxf6+
{[%clk 0:02:23.2]} 25... Kh8 {[%clk 0:01:39.5]} 26. Nd5 {[%clk 0:02:18.9]} 26...
Nc5 {[%clk 0:01:38.6]} 27. Qd1 {[%clk 0:02:17.6]} 27... Bc6 {[%clk 0:01:31.8]}
28. Nb4 {[%clk 0:02:04.9]} 28... Rh7 {[%clk 0:01:08.7]} 29. h4 {[%clk
0:01:56.9]} 29... gxh4+ {[%clk 0:01:07.5]} 30. Rxh4 {[%clk 0:01:56.4]} 30... Be7
{[%clk 0:01:06.8]} 31. Rxh6 {[%clk 0:01:49.4]} 31... Qf8 {[%clk 0:01:03]} 32.
Rxh7+ {[%clk 0:01:48.3]} 32... Kxh7 {[%clk 0:01:03.7]} 33. Nxc6 {[%clk
0:01:44.4]} 33... bxc6 {[%clk 0:01:03.3]} 34. g5 {[%clk 0:01:39.2]} 34... Nxf5+
{[%clk 0:00:35.3]} 35. exf5 {[%clk 0:01:38.7]} 35... Qxf5 {[%clk 0:00:35]} 36.
Qg4 {[%clk 0:01:32.6]} 36... Qxg4+ {[%clk 0:00:22.4]} 37. Kxg4 {[%clk
0:01:31.5]} 37... Kg6 {[%clk 0:00:23.1]} 38. Bd2 {[%clk 0:01:28.5]} 38... Rb8
{[%clk 0:00:20.8]} 39. b4 {[%clk 0:01:28.4]} 39... Ne6 {[%clk 0:00:18.8]} 40.
Be4+ {[%clk 0:01:26.9]} 40... Kg7 {[%clk 0:00:18.5]} 41. a3 {[%clk 0:01:27.1]}
41... c5 {[%clk 0:00:17.6]} 42. Nf3 {[%clk 0:01:25.8]} 42... cxb4 {[%clk
0:00:16.2]} 43. axb4 {[%clk 0:01:25.7]} 43... Bxb4 {[%clk 0:00:16.3]} 44. Rxa7+
{[%clk 0:01:25.4]} 44... Kg8 {[%clk 0:00:15.7]} 45. Bxb4 {[%clk 0:01:25.4]}
45... Rxb4 {[%clk 0:00:16]} 46. Nxe5 {[%clk 0:01:20.4]} 46... Rb1 {[%clk
0:00:14.2]} 47. Nf3 {[%clk 0:01:16.9]} 47... Nc5 {[%clk 0:00:11]} 48. Ne5 {[%clk
0:01:13.1]} 48... Nxe4 {[%clk 0:00:07.6]} 49. dxe4 {[%clk 0:01:12.4]} 49... Rd1
{[%clk 0:00:03.5]} 50. Rd7 {[%clk 0:01:12]} 50... d3 {[%clk 0:00:03.7]} 51. Rxd3
{[%clk 0:01:11.1]} 51... Rg1+ {[%clk 0:00:04.3]} 52. Kf5 {[%clk 0:01:08.1]}
52... Rf1+ {[%clk 0:00:05]} 53. Kg6 {[%clk 0:01:07.7]} 53... Rf8 {[%clk
0:00:04.7]} 54. Rd7 {[%clk 0:01:05.9]} 54... Ra8 {[%clk 0:00:04]} 55. Nf7 {[%clk
0:00:58.2]} 55... Ra6+ {[%clk 0:00:02.8]} 56. Nd6 {[%clk 0:00:57.7]} 56... Ra8
{[%clk 0:00:02.6]} 57. e5 {[%clk 0:00:56.4]} 57... Rf8 {[%clk 0:00:01.7]} 58. e6
{[%clk 0:00:55.1]} 58... Ra8 {[%clk 0:00:01.5]} 59. e7 {[%clk 0:00:54.8]} 59...
Re8 {[%clk 0:00:01.6]} 60. Rd8 {[%clk 0:00:54.6]} 1-0

[Event "Late-Titled-Tuesday-Blitz-March-26-2024"]
[Site "Chess.com"]
[Date "2024.03.26"]
[Round "4"]
[White "PetrolulSah"]
[Black "RichardShtivelband"]
[Result "0-1"]
[WhiteElo "2229"]
[BlackElo "2466"]
[TimeControl "180+1"]
[EndTime "14:41:18 PDT"]
[Termination "RichardShtivelband won on time"]

1. d4 {[%clk 0:03:00.9]} 1... Nf6 {[%clk 0:02:59.6]} 2. c4 {[%clk 0:03:00.7]}
2... e6 {[%clk 0:02:59.6]} 3. g3 {[%clk 0:03:00.1]} 3... c5 {[%clk 0:02:58.9]}
4. d5 {[%clk 0:02:58.1]} 4... exd5 {[%clk 0:02:57.7]} 5. cxd5 {[%clk 0:02:57.6]}
5... b5 {[%clk 0:02:58]} 6. Bg2 {[%clk 0:02:57.5]} 6... Bb7 {[%clk 0:02:57.6]}
7. Nh3 {[%clk 0:02:52.8]} 7... d6 {[%clk 0:02:56.4]} 8. O-O {[%clk 0:02:52.7]}
8... g6 {[%clk 0:02:53.2]} 9. b3 {[%clk 0:02:52.6]} 9... Bg7 {[%clk 0:02:53.1]}
10. Bb2 {[%clk 0:02:53.1]} 10... O-O {[%clk 0:02:53.3]} 11. Nd2 {[%clk
0:02:52.9]} 11... Nxd5 {[%clk 0:02:45.7]} 12. Bxg7 {[%clk 0:02:52.6]} 12... Kxg7
{[%clk 0:02:46.6]} 13. Ne4 {[%clk 0:02:51.4]} 13... Na6 {[%clk 0:02:24.3]} 14.
Nxd6 {[%clk 0:02:31.4]} 14... Qxd6 {[%clk 0:02:23]} 15. e4 {[%clk 0:02:31.5]}
15... Rad8 {[%clk 0:02:16]} 16. exd5 {[%clk 0:02:28.9]} 16... Bxd5 {[%clk
0:02:16]} 17. Bxd5 {[%clk 0:02:28.1]} 17... Qxd5 {[%clk 0:02:16.9]} 18. Qc2
{[%clk 0:02:27.4]} 18... Nb4 {[%clk 0:02:13.8]} 19. Qc3+ {[%clk 0:02:23.8]}
19... Qd4 {[%clk 0:02:13.6]} 20. Qxd4+ {[%clk 0:02:23.8]} 20... cxd4 {[%clk
0:02:14.5]} 21. Rfd1 {[%clk 0:02:20.9]} 21... Rfe8 {[%clk 0:02:09.4]} 22. Nf4
{[%clk 0:02:18.7]} 22... g5 {[%clk 0:02:03.4]} 23. Nd3 {[%clk 0:02:17]} 23...
Nd5 {[%clk 0:02:02.5]} 24. Rd2 {[%clk 0:02:04.9]} 24... Nc3 {[%clk 0:02:01.8]}
25. Kg2 {[%clk 0:02:02.9]} 25... Kg6 {[%clk 0:01:58.8]} 26. Re1 {[%clk 0:02:02]}
26... Re6 {[%clk 0:01:51.3]} 27. Ne5+ {[%clk 0:01:51.8]} 27... Kg7 {[%clk
0:01:48.5]} 28. Nf3 {[%clk 0:01:51.7]} 28... Rxe1 {[%clk 0:01:46.1]} 29. Nxe1
{[%clk 0:01:52.6]} 29... g4 {[%clk 0:01:40.1]} 30. Nc2 {[%clk 0:01:48.4]} 30...
Nxa2 {[%clk 0:01:38.9]} 31. Nxd4 {[%clk 0:01:48.1]} 31... Kg6 {[%clk 0:01:33]}
32. Rxa2 {[%clk 0:01:44.5]} 32... Rxd4 {[%clk 0:01:33]} 33. Ra6+ {[%clk
0:01:38.8]} 33... f6 {[%clk 0:01:28.9]} 34. Rxa7 {[%clk 0:01:36.5]} 34... Rd3
{[%clk 0:01:17.1]} 35. Ra8 {[%clk 0:01:24.7]} 35... Rxb3 {[%clk 0:01:11.6]} 36.
Rg8+ {[%clk 0:01:24.5]} 36... Kf5 {[%clk 0:01:08.4]} 37. Rg7 {[%clk 0:01:23.1]}
37... h5 {[%clk 0:01:06.5]} 38. Rg8 {[%clk 0:01:11.8]} 38... Rc3 {[%clk
0:01:03.1]} 39. Rh8 {[%clk 0:01:11.2]} 39... Kg6 {[%clk 0:01:02.6]} 40. Rg8+
{[%clk 0:01:11.3]} 40... Kf7 {[%clk 0:01:02]} 41. Rh8 {[%clk 0:01:10.9]} 41...
Rc5 {[%clk 0:01:00.3]} 42. Rb8 {[%clk 0:01:10.6]} 42... Ke6 {[%clk 0:00:59.2]}
43. Rb6+ {[%clk 0:01:10.2]} 43... Ke5 {[%clk 0:00:58.7]} 44. h3 {[%clk
0:01:06.4]} 44... f5 {[%clk 0:00:58]} 45. hxg4 {[%clk 0:01:05.1]} 45... hxg4
{[%clk 0:00:57.3]} 46. f3 {[%clk 0:01:04]} 46... gxf3+ {[%clk 0:00:56.6]} 47.
Kxf3 {[%clk 0:01:03.8]} 47... Kd4 {[%clk 0:00:57]} 48. g4 {[%clk 0:00:57.6]}
48... fxg4+ {[%clk 0:00:56.2]} 49. Kxg4 {[%clk 0:00:58.5]} 49... Kc3 {[%clk
0:00:56.1]} 50. Kf3 {[%clk 0:00:57.4]} 50... b4 {[%clk 0:00:54.3]} 51. Ke2
{[%clk 0:00:57.6]} 51... b3 {[%clk 0:00:51.4]} 52. Rd6 {[%clk 0:00:56.8]} 52...
b2 {[%clk 0:00:45.6]} 53. Rd3+ {[%clk 0:00:54.1]} 53... Kc2 {[%clk 0:00:45.4]}
54. Rd2+ {[%clk 0:00:53.9]} 54... Kb3 {[%clk 0:00:43.4]} 55. Rd3+ {[%clk
0:00:51.8]} 55... Rc3 {[%clk 0:00:42.5]} 56. Rd1 {[%clk 0:00:51.2]} 56... Rc1
{[%clk 0:00:41.2]} 57. Rd3+ {[%clk 0:00:50.4]} 57... Kc4 {[%clk 0:00:39]} 0-1

[Event "Late-Titled-Tuesday-Blitz-March-26-2024"]
[Site "Chess.com"]
[Date "2024.03.26"]
[Round "4"]
[White "ChessQueen"]
[Black "GiorgianBarbosa"]
[Result "0-1"]
[WhiteElo "2697"]
[BlackElo "2537"]
[TimeControl "180+1"]
[EndTime "14:41:19 PDT"]
[Termination "GiorgianBarbosa won by resignation"]

1. e4 {[%clk 0:03:00.9]} 1... c5 {[%clk 0:02:57.4]} 2. d4 {[%clk 0:03:00.7]}
2... g6 {[%clk 0:02:19.2]} 3. dxc5 {[%clk 0:02:54.8]} 3... Na6 {[%clk
0:02:17.8]} 4. Be3 {[%clk 0:02:51.2]} 4... Bg7 {[%clk 0:02:16.6]} 5. c3 {[%clk
0:02:51.4]} 5... Qc7 {[%clk 0:02:13.2]} 6. Bxa6 {[%clk 0:02:50.3]} 6... bxa6
{[%clk 0:02:14.1]} 7. Nf3 {[%clk 0:02:49.5]} 7... Bb7 {[%clk 0:02:10.4]} 8. Nbd2
{[%clk 0:02:49.2]} 8... Nf6 {[%clk 0:02:08.1]} 9. Qc2 {[%clk 0:02:46.2]} 9...
Ng4 {[%clk 0:02:05.2]} 10. Bd4 {[%clk 0:02:18.6]} 10... e5 {[%clk 0:02:03.1]}
11. h3 {[%clk 0:02:19]} 11... exd4 {[%clk 0:01:59.5]} 12. hxg4 {[%clk
0:02:19.2]} 12... dxc3 {[%clk 0:02:00.1]} 13. bxc3 {[%clk 0:02:17.4]} 13... Qxc5
{[%clk 0:01:59.7]} 14. Rc1 {[%clk 0:02:14.1]} 14... Rc8 {[%clk 0:01:54.5]} 15.
O-O {[%clk 0:02:12.4]} 15... O-O {[%clk 0:01:29.3]} 16. Qd3 {[%clk 0:02:06.3]}
16... Rfd8 {[%clk 0:01:22.9]} 17. c4 {[%clk 0:02:05.7]} 17... a5 {[%clk
0:01:17.7]} 18. Nb3 {[%clk 0:01:59.5]} 18... Qa3 {[%clk 0:01:14.4]} 19. Qd2
{[%clk 0:01:47]} 19... Bxe4 {[%clk 0:01:11]} 20. Ng5 {[%clk 0:01:37.3]} 20...
Bh6 {[%clk 0:00:59.9]} 21. Rfe1 {[%clk 0:01:34.1]} 21... Bc6 {[%clk 0:00:52.7]}
22. Qf4 {[%clk 0:01:26.3]} 22... Qf8 {[%clk 0:00:50]} 23. c5 {[%clk 0:01:18.1]}
23... f6 {[%clk 0:00:49.6]} 24. Qc4+ {[%clk 0:01:17.8]} 24... Kg7 {[%clk
0:00:49.4]} 25. Nh3 {[%clk 0:00:59.9]} 25... Bxc1 {[%clk 0:00:50.3]} 26. Rxc1
{[%clk 0:00:59.4]} 26... Re8 {[%clk 0:00:49]} 27. Nxa5 {[%clk 0:00:50.6]} 27...
Re4 {[%clk 0:00:48]} 28. Qd3 {[%clk 0:00:47.1]} 28... Qe7 {[%clk 0:00:42]} 29.
Nxc6 {[%clk 0:00:43.5]} 29... dxc6 {[%clk 0:00:42.2]} 30. g3 {[%clk 0:00:23.1]}
30... Rd8 {[%clk 0:00:39.1]} 31. Qf3 {[%clk 0:00:22.7]} 31... Re1+ {[%clk
0:00:35.2]} 32. Rxe1 {[%clk 0:00:22.8]} 32... Qxe1+ {[%clk 0:00:35.6]} 33. Kh2
{[%clk 0:00:22.9]} 33... Rd5 {[%clk 0:00:24.3]} 34. Qf4 {[%clk 0:00:20.4]} 34...
Qe5 {[%clk 0:00:20.7]} 35. Qb4 {[%clk 0:00:19.4]} 35... Qe7 {[%clk 0:00:15.7]}
36. Nf4 {[%clk 0:00:19.1]} 36... Re5 {[%clk 0:00:14.6]} 37. Qd4 {[%clk
0:00:14.5]} 37... Re1 {[%clk 0:00:13.4]} 38. Qb4 {[%clk 0:00:11.5]} 38... Qe4
{[%clk 0:00:12.4]} 39. Qb7+ {[%clk 0:00:10.9]} 39... Kh6 {[%clk 0:00:12.4]} 40.
Ng2 {[%clk 0:00:10.8]} 40... Re2 {[%clk 0:00:11.1]} 41. Qb8 {[%clk 0:00:06.1]}
41... Rxf2 {[%clk 0:00:08.4]} 42. Qf8+ {[%clk 0:00:04.7]} 42... Kg5 {[%clk
0:00:08.6]} 0-1

[Event "Late-Titled-Tuesday-Blitz-March-26-2024"]
[Site "Chess.com"]
[Date "2024.03.26"]
[Round "4"]
[White "secretsuperstar7"]
[Black "Romkachess"]
[Result "0-1"]
[WhiteElo "2508"]
[BlackElo "2707"]
[TimeControl "180+1"]
[EndTime "14:41:19 PDT"]
[Termination "Romkachess won on time"]

1. c4 {[%clk 0:02:59.6]} 1... e5 {[%clk 0:02:59.8]} 2. Nc3 {[%clk 0:02:58.4]}
2... Nf6 {[%clk 0:02:58.5]} 3. Nf3 {[%clk 0:02:57.4]} 3... Nc6 {[%clk
0:02:58.3]} 4. g3 {[%clk 0:02:56.1]} 4... Bb4 {[%clk 0:02:58.6]} 5. Bg2 {[%clk
0:02:56.2]} 5... Bxc3 {[%clk 0:02:58.5]} 6. dxc3 {[%clk 0:02:52.4]} 6... O-O
{[%clk 0:02:59.4]} 7. O-O {[%clk 0:02:52.4]} 7... d6 {[%clk 0:02:59.6]} 8. b3
{[%clk 0:02:43.3]} 8... a5 {[%clk 0:02:59.2]} 9. a4 {[%clk 0:02:41.2]} 9... Re8
{[%clk 0:02:57.6]} 10. Qc2 {[%clk 0:02:40.9]} 10... Bg4 {[%clk 0:02:56.6]} 11.
Rd1 {[%clk 0:02:37.1]} 11... Qe7 {[%clk 0:02:54.7]} 12. Ba3 {[%clk 0:02:24.4]}
12... Nd7 {[%clk 0:02:48]} 13. Ne1 {[%clk 0:02:13.6]} 13... Bh5 {[%clk 0:02:44]}
14. Qd2 {[%clk 0:02:06.2]} 14... h6 {[%clk 0:02:28.6]} 15. Nc2 {[%clk
0:02:05.8]} 15... Nf6 {[%clk 0:02:10]} 16. Ne3 {[%clk 0:02:00.5]} 16... Bg6
{[%clk 0:02:10.2]} 17. Nd5 {[%clk 0:01:56.1]} 17... Nxd5 {[%clk 0:02:09.2]} 18.
cxd5 {[%clk 0:01:52.9]} 18... Nb8 {[%clk 0:02:06.2]} 19. b4 {[%clk 0:01:43.7]}
19... Nd7 {[%clk 0:01:58.9]} 20. bxa5 {[%clk 0:01:28.7]} 20... Rxa5 {[%clk
0:01:58.3]} 21. Bb4 {[%clk 0:01:29]} 21... Raa8 {[%clk 0:01:57.7]} 22. a5 {[%clk
0:01:26.6]} 22... e4 {[%clk 0:01:45.9]} 23. Qe3 {[%clk 0:01:25.3]} 23... Ne5
{[%clk 0:01:41.4]} 24. h3 {[%clk 0:01:14.1]} 24... Nc4 {[%clk 0:01:24.7]} 25.
Qd4 {[%clk 0:01:13.7]} 25... b5 {[%clk 0:01:08.3]} 26. axb6 {[%clk 0:01:10.9]}
26... Nxb6 {[%clk 0:00:58.7]} 27. e3 {[%clk 0:01:09.9]} 27... Qd7 {[%clk
0:00:31.2]} 28. Bf1 {[%clk 0:00:51.6]} 28... Bf5 {[%clk 0:00:24.4]} 29. Kh2
{[%clk 0:00:50.9]} 29... h5 {[%clk 0:00:24.4]} 30. h4 {[%clk 0:00:48.4]} 30...
Bg4 {[%clk 0:00:20.2]} 31. Rdb1 {[%clk 0:00:48.4]} 31... Qf5 {[%clk 0:00:18]}
32. Kg1 {[%clk 0:00:44.8]} 32... Nxd5 {[%clk 0:00:16.3]} 33. Bb5 {[%clk
0:00:36]} 33... c5 {[%clk 0:00:13.6]} 34. Qd2 {[%clk 0:00:28]} 34... cxb4 {[%clk
0:00:11.7]} 35. Bxe8 {[%clk 0:00:22]} 35... Rxe8 {[%clk 0:00:11.4]} 36. Ra5
{[%clk 0:00:22]} 36... Bf3 {[%clk 0:00:09]} 37. Kh2 {[%clk 0:00:18.2]} 37... Re5
{[%clk 0:00:08.5]} 38. c4 {[%clk 0:00:10.9]} 38... Nf6 {[%clk 0:00:08.3]} 39.
Rxe5 {[%clk 0:00:05.9]} 39... Ng4+ {[%clk 0:00:08.1]} 40. Kg1 {[%clk 0:00:05.2]}
40... Nxe5 {[%clk 0:00:09]} 41. Kh2 {[%clk 0:00:03.9]} 41... Nxc4 {[%clk
0:00:07.1]} 42. Qd4 {[%clk 0:00:02.7]} 42... Bg4 {[%clk 0:00:05.6]} 43. Kg2
{[%clk 0:00:02.2]} 43... Qf3+ {[%clk 0:00:04.8]} 44. Kg1 {[%clk 0:00:01.9]}
44... Be6 {[%clk 0:00:04.9]} 0-1

[Event "Late-Titled-Tuesday-Blitz-March-26-2024"]
[Site "Chess.com"]
[Date "2024.03.26"]
[Round "4"]
[White "YegoryoCh"]
[Black "Byniolus"]
[Result "1-0"]
[WhiteElo "2559"]
[BlackElo "2723"]
[TimeControl "180+1"]
[EndTime "14:41:21 PDT"]
[Termination "YegoryoCh won by checkmate"]

1. e4 {[%clk 0:03:00.9]} 1... d6 {[%clk 0:03:00.3]} 2. d4 {[%clk 0:03:01]} 2...
Nf6 {[%clk 0:03:00.8]} 3. Nc3 {[%clk 0:03:01.8]} 3... c6 {[%clk 0:03:00.8]} 4.
Be3 {[%clk 0:02:54.6]} 4... Qb6 {[%clk 0:03:00.4]} 5. Rb1 {[%clk 0:02:50.6]}
5... Ng4 {[%clk 0:02:59.8]} 6. Bc1 {[%clk 0:02:40.4]} 6... e5 {[%clk 0:02:59.4]}
7. Nf3 {[%clk 0:02:40.5]} 7... Nd7 {[%clk 0:02:58.7]} 8. h3 {[%clk 0:02:40.7]}
8... Ngf6 {[%clk 0:02:58.9]} 9. Be2 {[%clk 0:02:41.2]} 9... Be7 {[%clk
0:02:58.6]} 10. O-O {[%clk 0:02:41.7]} 10... O-O {[%clk 0:02:59.1]} 11. Be3
{[%clk 0:02:42.3]} 11... Qc7 {[%clk 0:02:59.7]} 12. a3 {[%clk 0:02:42.1]} 12...
Re8 {[%clk 0:02:59.2]} 13. Re1 {[%clk 0:02:40.5]} 13... b5 {[%clk 0:02:56.2]}
14. Qd2 {[%clk 0:02:34.5]} 14... Bf8 {[%clk 0:02:48.1]} 15. d5 {[%clk
0:02:29.2]} 15... a6 {[%clk 0:02:48.5]} 16. Nh4 {[%clk 0:02:20.2]} 16... Bb7
{[%clk 0:02:39.5]} 17. Nf5 {[%clk 0:02:13.3]} 17... cxd5 {[%clk 0:02:27.6]} 18.
exd5 {[%clk 0:02:14.2]} 18... Nb6 {[%clk 0:02:25.6]} 19. Bxb6 {[%clk 0:01:55.8]}
19... Qxb6 {[%clk 0:02:26.5]} 20. Bf3 {[%clk 0:01:52.4]} 20... g6 {[%clk
0:02:00.3]} 21. Qg5 {[%clk 0:01:52.3]} 21... Qd8 {[%clk 0:01:55.9]} 22. Ne3
{[%clk 0:01:49.8]} 22... Rc8 {[%clk 0:01:46.7]} 23. Rbd1 {[%clk 0:01:49.6]}
23... Nd7 {[%clk 0:01:37.6]} 24. Qg3 {[%clk 0:01:48.2]} 24... Bg7 {[%clk
0:01:35.2]} 25. h4 {[%clk 0:01:22.5]} 25... f5 {[%clk 0:01:26.3]} 26. Qh3 {[%clk
0:01:22.4]} 26... e4 {[%clk 0:01:16.1]} 27. Be2 {[%clk 0:01:21.9]} 27... Bxc3
{[%clk 0:01:08.7]} 28. bxc3 {[%clk 0:01:22.8]} 28... Rxc3 {[%clk 0:01:08.8]} 29.
Qg3 {[%clk 0:01:23.5]} 29... Ne5 {[%clk 0:00:51]} 30. Qf4 {[%clk 0:01:14.6]}
30... Rf8 {[%clk 0:00:34.3]} 31. Rb1 {[%clk 0:01:12]} 31... Rxa3 {[%clk
0:00:27.9]} 32. c4 {[%clk 0:01:08]} 32... Nd3 {[%clk 0:00:20.2]} 33. Bxd3 {[%clk
0:01:04.7]} 33... Rxd3 {[%clk 0:00:21.1]} 34. cxb5 {[%clk 0:01:04.8]} 34... axb5
{[%clk 0:00:18.5]} 35. Rxb5 {[%clk 0:01:05.7]} 35... Qe7 {[%clk 0:00:14]} 36.
Reb1 {[%clk 0:01:04.6]} 36... Bc8 {[%clk 0:00:09.1]} 37. Nc4 {[%clk 0:01:03.7]}
37... Rd8 {[%clk 0:00:06.7]} 38. Rb6 {[%clk 0:01:04.1]} 38... Rxd5 {[%clk
0:00:06]} 39. Rb8 {[%clk 0:00:54.8]} 39... Be6 {[%clk 0:00:05.7]} 40. Na5 {[%clk
0:00:51.6]} 40... Rxb8 {[%clk 0:00:04.9]} 41. Rxb8+ {[%clk 0:00:52.5]} 41... Kg7
{[%clk 0:00:05.5]} 42. Nc6 {[%clk 0:00:36.6]} 42... Rd1+ {[%clk 0:00:05.1]} 43.
Kh2 {[%clk 0:00:36.5]} 43... Qc7 {[%clk 0:00:05.3]} 44. Qg5 {[%clk 0:00:31.5]}
44... d5+ {[%clk 0:00:04.8]} 45. g3 {[%clk 0:00:30.8]} 45... e3 {[%clk
0:00:04.7]} 46. Qxe3 {[%clk 0:00:23.2]} 46... Qxc6 {[%clk 0:00:03.7]} 47. Qe5+
{[%clk 0:00:23.4]} 47... Kf7 {[%clk 0:00:04.2]} 48. Rh8 {[%clk 0:00:22.4]} 48...
d4 {[%clk 0:00:04]} 49. Rxh7+ {[%clk 0:00:22.5]} 49... Kf8 {[%clk 0:00:03.5]}
50. Qg7+ {[%clk 0:00:21.7]} 50... Ke8 {[%clk 0:00:04]} 51. Qe7# {[%clk
0:00:22.6]} 1-0

[Event "Late-Titled-Tuesday-Blitz-March-26-2024"]
[Site "Chess.com"]
[Date "2024.03.26"]
[Round "4"]
[White "MetiForce"]
[Black "FabianoCaruana"]
[Result "0-1"]
[WhiteElo "2902"]
[BlackElo "3105"]
[TimeControl "180+1"]
[EndTime "14:41:24 PDT"]
[Termination "FabianoCaruana won on time"]

1. c4 {[%clk 0:02:56.7]} 1... e5 {[%clk 0:02:59.7]} 2. Nc3 {[%clk 0:02:56.7]}
2... Bb4 {[%clk 0:02:59.2]} 3. Nd5 {[%clk 0:02:56.7]} 3... Be7 {[%clk
0:02:59.1]} 4. e3 {[%clk 0:02:56]} 4... Nf6 {[%clk 0:02:57.1]} 5. Nxe7 {[%clk
0:02:52.7]} 5... Qxe7 {[%clk 0:02:58]} 6. Be2 {[%clk 0:02:50.7]} 6... O-O {[%clk
0:02:52.4]} 7. d3 {[%clk 0:02:40.7]} 7... c5 {[%clk 0:02:50.6]} 8. Nf3 {[%clk
0:02:38.4]} 8... Nc6 {[%clk 0:02:50.7]} 9. O-O {[%clk 0:02:34.7]} 9... d5 {[%clk
0:02:50.7]} 10. cxd5 {[%clk 0:02:17.1]} 10... Nxd5 {[%clk 0:02:51.6]} 11. a3
{[%clk 0:02:10.4]} 11... h6 {[%clk 0:02:47.4]} 12. Qc2 {[%clk 0:02:08.7]} 12...
Be6 {[%clk 0:02:44.9]} 13. b3 {[%clk 0:02:06.6]} 13... Rac8 {[%clk 0:02:42]} 14.
Bb2 {[%clk 0:02:06.8]} 14... f6 {[%clk 0:02:35.3]} 15. Rac1 {[%clk 0:02:06.5]}
15... b6 {[%clk 0:02:34.9]} 16. Nd2 {[%clk 0:02:05.5]} 16... Rfd8 {[%clk
0:02:33.6]} 17. Ne4 {[%clk 0:01:58.6]} 17... Qf7 {[%clk 0:02:29]} 18. Nd2 {[%clk
0:01:40.2]} 18... Nde7 {[%clk 0:02:25.9]} 19. Bc3 {[%clk 0:01:35.2]} 19... Rd7
{[%clk 0:02:18.1]} 20. Qb1 {[%clk 0:01:30.6]} 20... Nd5 {[%clk 0:02:07.6]} 21.
Ba1 {[%clk 0:01:24.4]} 21... Rdd8 {[%clk 0:01:53.7]} 22. Rc2 {[%clk 0:01:23.6]}
22... Qg6 {[%clk 0:01:52.2]} 23. Ne4 {[%clk 0:00:51.7]} 23... Bh3 {[%clk
0:01:31.3]} 24. Ng3 {[%clk 0:00:50.1]} 24... Bg4 {[%clk 0:01:28.8]} 25. Bxg4
{[%clk 0:00:47.9]} 25... Qxg4 {[%clk 0:01:29.7]} 26. Rfc1 {[%clk 0:00:48.2]}
26... Nde7 {[%clk 0:01:22.1]} 27. h3 {[%clk 0:00:41.2]} 27... Qe6 {[%clk
0:01:19.6]} 28. b4 {[%clk 0:00:38.8]} 28... cxb4 {[%clk 0:00:51.6]} 29. axb4
{[%clk 0:00:39.7]} 29... Nd5 {[%clk 0:00:39.5]} 30. Qb3 {[%clk 0:00:26.6]} 30...
Kf7 {[%clk 0:00:37.4]} 31. b5 {[%clk 0:00:21.2]} 31... Nce7 {[%clk 0:00:34.1]}
32. Qa4 {[%clk 0:00:19.2]} 32... Qd7 {[%clk 0:00:29.4]} 33. Bb2 {[%clk
0:00:19.2]} 33... a5 {[%clk 0:00:28.3]} 34. Ba3 {[%clk 0:00:16.3]} 34... Rxc2
{[%clk 0:00:28]} 35. Rxc2 {[%clk 0:00:17.2]} 35... Rc8 {[%clk 0:00:28.2]} 36.
Ne4 {[%clk 0:00:13.6]} 36... Rxc2 {[%clk 0:00:27.1]} 37. Qxc2 {[%clk 0:00:14.5]}
37... Kg8 {[%clk 0:00:26.1]} 38. Qc4 {[%clk 0:00:13.3]} 38... Kh7 {[%clk
0:00:21.9]} 39. Bxe7 {[%clk 0:00:12.3]} 39... Nxe7 {[%clk 0:00:20.1]} 40. Qf7
{[%clk 0:00:13]} 40... Kh8 {[%clk 0:00:20.4]} 41. Ng3 {[%clk 0:00:08.6]} 41...
Qd8 {[%clk 0:00:07]} 42. Nh5 {[%clk 0:00:06.4]} 42... Nf5 {[%clk 0:00:07.6]} 43.
e4 {[%clk 0:00:04.5]} 43... Qg8 {[%clk 0:00:08.1]} 44. Qxg8+ {[%clk 0:00:04.3]}
44... Kxg8 {[%clk 0:00:09]} 45. exf5 {[%clk 0:00:02.1]} 45... a4 {[%clk
0:00:09.4]} 0-1